{"text_format":"1","workbook":"xlsx","n_sheets":12,"sheets":["Kuršėnai","Mažeikiai","Nemenčinė","Panevėžys","Prienai","Radviliškis","Raseiniai","Rokiškis","Šakiai","Šalčininkai","Šilutė","Švenčionėliai"],"not_rendered":{"charts":0,"images":0,"macros":0,"external_links":0,"defined_names":0,"comments":0,"pivot_tables":0},"unopened":[],"bounds":{"document_bytes":16777216,"sheet_cells":100000,"rows_first":2000,"rows_last":500,"rows_between":2000,"halvings":0,"cell_chars":16384,"cell_head_chars":4096},"cells_cut":0,"cells_raw":0,"read":"whole","date_system":"1900"}

{"sheet":"Kuršėnai","index":0,"n_rows":12,"n_cols":9,"rows_kept":12,"cut":false,"hidden":false,"merged":[[3,0,3,2],[0,0,0,11],[1,2,1,8],[10,0,10,2],[11,0,11,2]]}
["VĮ Valstybinių miškų urėdijos Kuršėnų  regioninio padalinio informacija apie perkamus miškininkystės paslaugų kiekius 2025 metams"]
["Eil. ","Paslaugų grupės ir paslaugų pavadinimai","Preliminarios paslaugų apimtys"]
[1,"Želdaviečių paruošimas miškų sodinimui, želdinių ir žėlinių priežiūra, jaunuolynų ugdymas, griovių šlaitų ir pagriovių, pakelių, kvartalinių ir ribinių linijų priežiūra","Mato vnt.","Gruzdžių girininkija 1","Gruzdžių girininkija 2","Kurtuvėnų girininkija","Pažiužmėlių girininkija","Rėkyvos girininkija","Vainagių girininkija"]
["Pirkimo objekto dalies numeris",null,null,1,2,3,4,5,6]
["1.","Želdavietės paruošimas miško sodmenų sodinimui šalinant nepageidaujamus medžius, krūmus, žolinę augmeniją","ha",0,0,0,0,0,0]
["2.","Miško želdinių ir žėlinių  priežiūra šalinant žabus ir žolinę augmeniją","ha",45,45,20,20,20,80]
["3.","Jaunuolynų ugdymas ir/ar retinimo kirtimai, negaminant likvidinės medienos ","ha",45,40,0,0,0,44]
["4.","Griovių šlaitų ir pagriovių priežiūra","ha",0,0,0,0,0,0]
["5.","Pakelių priežiūra","km",0,0,0,0,0,0]
["6.","kvartalinių ir ribinių linijų priežūra","km",9,9,20,5,15,23]
["Preliminari 1 metų suma",null,null,{"$f":"+D5*301+D6*263+D7*299+D8*301+D9*53+D10*126","v":26424},{"$f":"+E5*301+E6*263+E7*299+E8*301+E9*53+E10*126","v":24929},7780,5890,7150,37094]
["Maksimali POD suma",null,null,{"$f":"+D11*3*1.3","v":103053.6},{"$f":"+E11*3*1.3","v":97223.1},30342,22971,27885,144666.6]

{"sheet":"Mažeikiai","index":1,"n_rows":35,"n_cols":5,"rows_kept":35,"cut":false,"hidden":false,"merged":[[34,0,34,2],[17,0,17,2],[18,0,18,2],[26,0,26,2],[27,0,27,2],[33,0,33,2],[0,0,0,7],[1,2,1,4],[15,0,15,2],[3,0,3,2],[13,0,14,0],[13,1,14,1],[13,2,14,2],[10,0,10,2],[11,0,11,2],[29,0,30,0],[29,1,30,1],[29,2,30,2],[31,0,31,2],[20,0,21,0],[20,1,21,1],[20,2,21,2],[22,0,22,2]]}
["VĮ Valstybinių miškų urėdijos Mažeikių  regioninio padalinio informacija apie perkamus miškininkystės paslaugų kiekius 2025 metams"]
["Eil. ","Paslaugų grupės ir paslaugų pavadinimai","Preliminarios paslaugų apimtys"]
[1,"Želdaviečių paruošimas miškų sodinimui, želdinių ir žėlinių priežiūra, jaunuolynų ugdymas, griovių šlaitų ir pagriovių, pakelių, kvartalinių ir ribinių linijų priežiūra","Mato vnt.","Akmenės girininkija","Papilės girininkija"]
["Pirkimo objekto dalies numeris",null,null,7,8]
["1.","Želdavietės paruošimas miško sodmenų sodinimui šalinant nepageidaujamus medžius, krūmus, žolinę augmeniją","ha",6,6]
["2.","Miško želdinių ir žėlinių  priežiūra šalinant žabus ir žolinę augmeniją","ha",28,40]
["3.","Jaunuolynų ugdymas ir/ar retinimo kirtimai, negaminant likvidinės medienos ","ha",48]
["4.","Griovių šlaitų ir pagriovių priežiūra","ha",10,1]
["5.","Pakelių priežiūra","km"]
["6.","kvartalinių ir ribinių linijų priežūra","km",6,2]
["Preliminari 1 metų suma",null,null,{"$f":"+D5*301+D6*263+D7*299+D8*301+D9*53+D10*126","v":27288},{"$f":"+E5*301+E6*263+E7*299+E8*301+E9*53+E10*126","v":12879}]
["Maksimali POD suma",null,null,{"$f":"+D11*3*1.3","v":106423.2},{"$f":"+E11*3*1.3","v":50228.1}]
[]
[2,"Želdavietės paruošimas miško sodmenų sodinimui cheminiu būdu pašalinant nepageidaujamą augmeniją ","Mato vnt.","Preliminarios paslaugų apimtys"]
[null,null,null,"Mažeikių RP 1"]
["Pirkimo objekto dalies numeris",null,null,9]
["7.","Želdavietės paruošimas miško sodmenų sodinimui cheminiu būdu pašalinant nepageidaujamą augmeniją","ha",120]
["Preliminari 1 metų suma",null,null,{"$f":"+D17*111","v":13320}]
["Maksimali POD suma",null,null,{"$f":"+D18*3*1.3","v":51948}]
[]
["3.","Miško sodmenų sodinimas, želdinių ir žėlinių medelių ir jų liemenų apsauga nuo kanopinių žvėrių bei vabzdžių daromos žalos  ","Mato vnt.","Preliminarios paslaugų apimtys"]
[null,null,null,"Žagarės; Skaistgirio; Beržėnų girininkijos"]
["Pirkimo objekto dalies numeris",null,null,10]
["8.","Miško atkūrimas, įveisimas ir atsodinimas (medelių ir krūmų sodinimas)","tūkst. vnt."]
["9.","Želdinių, žėlinių apsauga nuo kanopinių žvėrių bei vabzdžių daromos žalos ","tūkst. vnt."]
["10.","Želdinių, žėlinių ir medelių kamienų apsauga nuo kanopinių žvėrių daromos žalos","tūkst. vnt.",30]
["Preliminari 1 metų suma",null,null,{"$f":"+D24*178+D25*27+D26*390","v":11700}]
["Maksimali POD suma",null,null,{"$f":"+D27*3*1.3","v":45630}]
[]
["5.","Sodmenų transportavimo paslaugos","Mato vnt.","Preliminarios paslaugų apimtys"]
[null,null,null,"Mažeikių RP 2"]
["Pirkimo objekto dalies numeris",null,null,11]
["12.","Sodmenų transportavimo paslaugos ","km",2000]
["Preliminari 1 metų suma",null,null,{"$f":"+D33*1.5","v":3000}]
["Maksimali POD suma",null,null,{"$f":"+D34*3*1.3","v":11700}]

{"sheet":"Nemenčinė","index":2,"n_rows":21,"n_cols":15,"rows_kept":21,"cut":false,"hidden":false,"merged":[[19,0,19,2],[20,0,20,2],[15,0,15,2],[1,2,1,5],[0,0,0,17],[3,0,3,2],[13,0,14,0],[13,1,14,1],[13,2,14,2],[13,3,13,14],[10,0,10,2],[11,0,11,2]]}
["VĮ Valstybinių miškų urėdijos Nemenčinės regioninio padalinio informacija apie perkamus miškininkystės paslaugų kiekius 2025 metams"]
["Eil. ","Paslaugų grupės ir paslaugų pavadinimai","Preliminarios paslaugų apimtys"]
[1,"Želdaviečių paruošimas miškų sodinimui, želdinių ir žėlinių priežiūra, jaunuolynų ugdymas, griovių šlaitų ir pagriovių, pakelių, kvartalinių ir ribinių linijų priežiūra","Mato vnt.","Vilnios girininkija 1","Taurijos girininkija 1","Taurijos girininkija 2"]
["Pirkimo objekto dalies numeris",null,null,12,13,14]
["1.","Želdavietės paruošimas miško sodmenų sodinimui šalinant nepageidaujamus medžius, krūmus, žolinę augmeniją","ha",0,0,0]
["2.","Miško želdinių ir žėlinių  priežiūra šalinant žabus ir žolinę augmeniją","ha",65,60,0]
["3.","Jaunuolynų ugdymas ir/ar retinimo kirtimai, negaminant likvidinės medienos ","ha",0,0,30]
["4.","Griovių šlaitų ir pagriovių priežiūra","ha",0,0,2]
["5.","Pakelių priežiūra","km",0,0,0]
["6.","kvartalinių ir ribinių linijų priežūra","km",0,0,0]
["Preliminari 1 metų suma",null,null,{"$f":"+D5*301+D6*263+D7*299+D8*301+D9*53+D10*126","v":17095},{"$f":"+E5*301+E6*263+E7*299+E8*301+E9*53+E10*126","v":15780},9572]
["Maksimali POD suma",null,null,{"$f":"+D11*3*1.3","v":66670.5},{"$f":"+E11*3*1.3","v":61542},37330.800000000003]
[]
["3.","Miško sodmenų sodinimas, želdinių ir žėlinių medelių ir jų liemenų apsauga nuo kanopinių žvėrių bei vabzdžių daromos žalos  ","Mato vnt.","Preliminarios paslaugų apimtys"]
[null,null,null,"Nemenčinės girininkija 1","Nemenčinės girininkija 2","Pabradės girininkija 1","Pabradės girininkija 2","Vilnios girininkija 2","Vilnios girininkija 3","Taurijos girininkija 3","Taurijos girininkija 4","Taurijos girininkija 5","Meškerinės girininkija","Asvejos girininkija","Nemenčinės Neries Meškerinės girininkijos"]
["Pirkimo objekto dalies numeris",null,null,15,16,17,18,19,20,21,22,23,24,25,26]
["8.","Miško atkūrimas, įveisimas ir atsodinimas (medelių ir krūmų sodinimas)","tūkst. vnt.",59,0,123,60,75,77,86,88,0,0,0,0]
["9.","Želdinių, žėlinių apsauga nuo kanopinių žvėrių bei vabzdžių daromos žalos ","tūkst. vnt.",0,170,280,0,0,0,0,0,550,480,205,0]
["10.","Želdinių, žėlinių ir medelių kamienų apsauga nuo kanopinių žvėrių daromos žalos","tūkst. vnt.",0,0,0,0,0,0,0,0,0,0,0,26]
["Preliminari 1 metų suma",null,null,{"$f":"+D17*178+D18*27+D19*390","v":10502},{"$f":"+E17*178+E18*27+E19*390","v":4590},29454,10680,13350,13706,15308,15664,14850,12960,5535,10140]
["Maksimali POD suma",null,null,{"$f":"+D20*3*1.3","v":40957.800000000003},{"$f":"+E20*3*1.3","v":17901},114870.6,41652,52065,53453.4,59701.200000000004,61089.599999999999,57915,50544,21586.5,39546]

{"sheet":"Panevėžys","index":3,"n_rows":19,"n_cols":4,"rows_kept":19,"cut":false,"hidden":false,"merged":[[17,0,17,2],[18,0,18,2],[13,0,14,0],[13,1,14,1],[13,2,14,2],[15,0,15,2],[0,0,0,7],[3,0,3,2],[1,2,2,2],[10,0,10,2],[11,0,11,2]]}
["VĮ Valstybinių miškų urėdijos Panevėžio  regioninio padalinio informacija apie perkamus miškininkystės paslaugų kiekius 2025 metams"]
["Eil. ","Paslaugų grupės ir paslaugų pavadinimai","Mato vnt.","Preliminarios paslaugų apimtys"]
[1,"Želdaviečių paruošimas miškų sodinimui, želdinių ir žėlinių priežiūra, jaunuolynų ugdymas, griovių šlaitų ir pagriovių, pakelių, kvartalinių ir ribinių linijų priežiūra",null,"Rozalimo girininkija"]
["Pirkimo objekto dalies numeris",null,null,27]
["1.","Želdavietės paruošimas miško sodmenų sodinimui šalinant nepageidaujamus medžius, krūmus, žolinę augmeniją","ha",0]
["2.","Miško želdinių ir žėlinių  priežiūra šalinant žabus ir žolinę augmeniją","ha",20]
["3.","Jaunuolynų ugdymas ir/ar retinimo kirtimai, negaminant likvidinės medienos ","ha",20]
["4.","Griovių šlaitų ir pagriovių priežiūra","ha",0]
["5.","Pakelių priežiūra","km",0]
["6.","kvartalinių ir ribinių linijų priežūra","km",15]
["Preliminari 1 metų suma",null,null,{"$f":"+D5*301+D6*263+D7*299+D8*301+D9*53+D10*126","v":13130}]
["Maksimali POD suma",null,null,{"$f":"+D11*3*1.3","v":51207}]
[]
["4.","Želdinių, žėlinių apsauga nuo kanopinių žvėrių daromos žalos, tveriant vielos tinklo tvorą","Mato vnt.","Preliminarios paslaugų apimtys"]
[null,null,null,"Panevėžio RP "]
["Pirkimo objekto dalies numeris",null,null,28]
["11.","Želdinių, žėlinių apsauga nuo kanopinių žvėrių daromos žalos, tveriant vielos tinklo tvorą ","m",10000]
["Preliminari 1 metų suma",null,null,{"$f":"+D17*1.85","v":18500}]
["Maksimali POD suma",null,null,{"$f":"+D18*3*1.3","v":72150}]

{"sheet":"Prienai","index":4,"n_rows":12,"n_cols":5,"rows_kept":12,"cut":false,"hidden":false,"merged":[[1,2,1,4],[3,0,3,2],[0,0,0,10],[10,0,10,2],[11,0,11,2]]}
["VĮ Valstybinių miškų urėdijos Prienų  regioninio padalinio informacija apie perkamus miškininkystės paslaugų kiekius 2025 metams"]
["Eil. ","Paslaugų grupės ir paslaugų pavadinimai","Preliminarios paslaugų apimtys"]
[1,"Želdaviečių paruošimas miškų sodinimui, želdinių ir žėlinių priežiūra, jaunuolynų ugdymas, griovių šlaitų ir pagriovių, pakelių, kvartalinių ir ribinių linijų priežiūra","Mato vnt.","Birštono girininkija","Dušnionių girininkija"]
["Pirkimo objekto dalies numeris",null,null,29,30]
["1.","Želdavietės paruošimas miško sodmenų sodinimui šalinant nepageidaujamus medžius, krūmus, žolinę augmeniją","ha",5,20]
["2.","Miško želdinių ir žėlinių  priežiūra šalinant žabus ir žolinę augmeniją","ha",20,85]
["3.","Jaunuolynų ugdymas ir/ar retinimo kirtimai, negaminant likvidinės medienos ","ha",20,71]
["4.","Griovių šlaitų ir pagriovių priežiūra","ha",null,5]
["5.","Pakelių priežiūra","km"]
["6.","kvartalinių ir ribinių linijų priežūra","km",null,10]
["Preliminari 1 metų suma",null,null,{"$f":"+D5*301+D6*263+D7*299+D8*301+D9*53+D10*126","v":12745},{"$f":"+E5*301+E6*263+E7*299+E8*301+E9*53+E10*126","v":52369}]
["Maksimali POD suma",null,null,{"$f":"+D11*3*1.3","v":49705.5},{"$f":"+E11*3*1.3","v":204239.1}]

{"sheet":"Radviliškis","index":5,"n_rows":28,"n_cols":10,"rows_kept":28,"cut":false,"hidden":false,"merged":[[26,0,26,2],[27,0,27,2],[0,0,0,12],[1,2,1,9],[3,0,3,2],[13,3,13,6],[22,0,23,0],[22,1,23,1],[22,2,23,2],[10,0,10,2],[11,0,11,2],[19,0,19,2],[20,0,20,2],[24,0,24,2],[13,0,14,0],[13,1,14,1],[13,2,14,2],[15,0,15,2]]}
["VĮ Valstybinių miškų urėdijos Radviliškio regioninio padalinio informacija apie perkamus miškininkystės paslaugų kiekius 2025 metams"]
["Eil. ","Paslaugų grupės ir paslaugų pavadinimai","Preliminarios paslaugų apimtys"]
[1,"Želdaviečių paruošimas miškų sodinimui, želdinių ir žėlinių priežiūra, jaunuolynų ugdymas, griovių šlaitų ir pagriovių, pakelių, kvartalinių ir ribinių linijų priežiūra","Mato vnt.","Ąžuoloto girininkija","Baisogalos girininkija 1","Josvainių girininkija","Legečių girininkija","Kėdainių girininkija","Pašušvio girininkija","Radviliškio girininkija"]
["Pirkimo objekto dalies numeris",null,null,31,32,33,34,35,36,37]
["1.","Želdavietės paruošimas miško sodmenų sodinimui šalinant nepageidaujamus medžius, krūmus, žolinę augmeniją","ha",4,5,20,null,null,3,4]
["2.","Miško želdinių ir žėlinių  priežiūra šalinant žabus ir žolinę augmeniją","ha",35,19,null,null,24,20]
["3.","Jaunuolynų ugdymas ir/ar retinimo kirtimai, negaminant likvidinės medienos ","ha",49,null,null,17.899999999999999,null,26,22]
["4.","Griovių šlaitų ir pagriovių priežiūra","ha",null,null,7,null,null,8,10]
["5.","Pakelių priežiūra","km",null,null,10,null,null,null,5]
["6.","kvartalinių ir ribinių linijų priežūra","km",10,null,17,null,null,17,30]
["Preliminari 1 metų suma",null,null,{"$f":"+D5*301+D6*263+D7*299+D8*301+D9*53+D10*126","v":26320},{"$f":"+E5*301+E6*263+E7*299+E8*301+E9*53+E10*126","v":6502},10799,5352.0999999999995,6312,18487,14837]
["Maksimali POD suma",null,null,{"$f":"+D11*3*1.3","v":102648},{"$f":"+E11*3*1.3","v":25357.8},42116.1,20873.189999999999,24616.799999999999,72099.3,57864.3]
[]
["3.","Miško sodmenų sodinimas, želdinių ir žėlinių medelių ir jų liemenų apsauga nuo kanopinių žvėrių bei vabzdžių daromos žalos  ","Mato vnt.","Preliminarios paslaugų apimtys"]
[null,null,null,"Ąžuoloto, Gudžiūnų girininkijos","Baisogalos girininkija 2","Josvainių, Kėdainių, Lančiūnavos girininkijos","Legečių, Pašušvio, Radviliškio girininkijos"]
["Pirkimo objekto dalies numeris",null,null,38,39,40,41]
["8.","Miško atkūrimas, įveisimas ir atsodinimas (medelių ir krūmų sodinimas)","tūkst. vnt."]
["9.","Želdinių, žėlinių apsauga nuo kanopinių žvėrių bei vabzdžių daromos žalos ","tūkst. vnt.",null,139.5]
["10.","Želdinių, žėlinių ir medelių kamienų apsauga nuo kanopinių žvėrių daromos žalos","tūkst. vnt.",35,40,35,56.5]
["Preliminari 1 metų suma",null,null,{"$f":"+D17*178+D18*27+D19*390","v":13650},{"$f":"+E17*178+E18*27+E19*390","v":19366.5},13650,22035]
["Maksimali POD suma",null,null,{"$f":"+D20*3*1.3","v":53235},{"$f":"+E20*3*1.3","v":75529.350000000006},53235,85936.5]
[]
["4.","Želdinių, žėlinių apsauga nuo kanopinių žvėrių daromos žalos, tveriant vielos tinklo tvorą","Mato vnt.","Preliminarios paslaugų apimtys"]
[null,null,null,"Radviliškio regioninio padalinio teritorija"]
["Pirkimo objekto dalies numeris",null,null,42]
["11.","Želdinių, žėlinių apsauga nuo kanopinių žvėrių daromos žalos, tveriant vielos tinklo tvorą ","m",8758]
["Preliminari 1 metų suma",null,null,{"$f":"+D26*1.85","v":16202.300000000001}]
["Maksimali POD suma",null,null,{"$f":"+D27*3*1.3","v":63188.97}]

{"sheet":"Raseiniai","index":6,"n_rows":35,"n_cols":6,"rows_kept":35,"cut":false,"hidden":false,"merged":[[26,0,26,2],[27,0,27,2],[33,0,33,2],[34,0,34,2],[29,0,30,0],[29,1,30,1],[29,2,30,2],[31,0,31,2],[29,3,29,4],[22,0,23,0],[22,1,23,1],[22,2,23,2],[24,0,24,2],[13,0,14,0],[13,1,14,1],[13,2,14,2],[19,0,19,2],[20,0,20,2],[13,3,13,5],[15,0,15,2],[0,0,0,8],[1,2,1,5],[3,0,3,2],[10,0,10,2],[11,0,11,2]]}
["VĮ Valstybinių miškų urėdijos Raseinių regioninio padalinio informacija apie perkamus miškininkystės paslaugų kiekius 2025 metams"]
["Eil. ","Paslaugų grupės ir paslaugų pavadinimai","Preliminarios paslaugų apimtys"]
[1,"Želdaviečių paruošimas miškų sodinimui, želdinių ir žėlinių priežiūra, jaunuolynų ugdymas, griovių šlaitų ir pagriovių, pakelių, kvartalinių ir ribinių linijų priežiūra","Mato vnt.","Betygalos, Dubysos, Tytuvėnų  girininkijos","Kražių, Užvenčio girininkijos 1","Šimkaičių, Viduklės girininkijos 1"]
["Pirkimo objekto dalies numeris",null,null,43,44,45]
["1.","Želdavietės paruošimas miško sodmenų sodinimui šalinant nepageidaujamus medžius, krūmus, žolinę augmeniją","ha",9,0,0]
["2.","Miško želdinių ir žėlinių  priežiūra šalinant žabus ir žolinę augmeniją","ha",223,20,150]
["3.","Jaunuolynų ugdymas ir/ar retinimo kirtimai, negaminant likvidinės medienos ","ha",90,24,100]
["4.","Griovių šlaitų ir pagriovių priežiūra","ha",23,10,20]
["5.","Pakelių priežiūra","km",0,0,0]
["6.","kvartalinių ir ribinių linijų priežūra","km",15,10,20]
["Preliminari 1 metų suma",null,null,{"$f":"+D5*301+D6*263+D7*299+D8*301+D9*53+D10*126","v":97081},{"$f":"+E5*301+E6*263+E7*299+E8*301+E9*53+E10*126","v":16706},77890]
["Maksimali POD suma",null,null,{"$f":"+D11*3*1.3","v":378615.9},{"$f":"+E11*3*1.3","v":65153.4},303771]
[]
["3.","Miško sodmenų sodinimas, želdinių ir žėlinių medelių ir jų liemenų apsauga nuo kanopinių žvėrių bei vabzdžių daromos žalos  ","Mato vnt.","Preliminarios paslaugų apimtys"]
[null,null,null,"Betygalos, Dubysos girininkijos","Kražių, Užvenčio girininkijos 2","Šimkaičių,  Viduklės girininkijos 2"]
["Pirkimo objekto dalies numeris",null,null,46,47,48]
["8.","Miško atkūrimas, įveisimas ir atsodinimas (medelių ir krūmų sodinimas)","tūkst. vnt.",220,0,60]
["9.","Želdinių, žėlinių apsauga nuo kanopinių žvėrių bei vabzdžių daromos žalos ","tūkst. vnt.",80,165,0]
["10.","Želdinių, žėlinių ir medelių kamienų apsauga nuo kanopinių žvėrių daromos žalos","tūkst. vnt.",0,7,6]
["Preliminari 1 metų suma",null,null,{"$f":"+D17*178+D18*27+D19*390","v":41320},{"$f":"+E17*178+E18*27+E19*390","v":7185},13020]
["Maksimali POD suma",null,null,{"$f":"+D20*3*1.3","v":161148},{"$f":"+E20*3*1.3","v":28021.5},50778]
[]
["4.","Želdinių, žėlinių apsauga nuo kanopinių žvėrių daromos žalos, tveriant vielos tinklo tvorą","Mato vnt.","Preliminarios paslaugų apimtys"]
[null,null,null,"Raseinių RP"]
["Pirkimo objekto dalies numeris",null,null,49]
["11.","Želdinių, žėlinių apsauga nuo kanopinių žvėrių daromos žalos, tveriant vielos tinklo tvorą ","m",17000]
["Preliminari 1 metų suma",null,null,{"$f":"+D26*1.85","v":31450}]
["Maksimali POD suma",null,null,{"$f":"+D27*3*1.3","v":122655}]
[]
["5.","Sodmenų transportavimo paslaugos","Mato vnt.","Preliminarios paslaugų apimtys"]
[null,null,null,"Tytuvėnų girininkija","Viduklės girininkija"]
["Pirkimo objekto dalies numeris",null,null,50,51]
["12.","Sodmenų transportavimo paslaugos ","km",150,100]
["Preliminari 1 metų suma",null,null,{"$f":"+D33*1.5","v":225},{"$f":"+E33*1.5","v":150}]
["Maksimali POD suma",null,null,{"$f":"+D34*3*1.3","v":877.5},{"$f":"+E34*3*1.3","v":585}]

{"sheet":"Rokiškis","index":7,"n_rows":28,"n_cols":10,"rows_kept":28,"cut":false,"hidden":false,"merged":[[20,0,20,2],[26,0,26,2],[27,0,27,2],[3,0,3,2],[0,0,0,9],[1,2,1,9],[13,0,14,0],[24,0,24,2],[22,0,23,0],[22,1,23,1],[22,2,23,2],[22,3,22,4],[13,1,14,1],[13,2,14,2],[15,0,15,2],[13,3,13,7],[10,0,10,2],[11,0,11,2],[19,0,19,2]]}
["VĮ Valstybinių miškų urėdijos Rokiškio regioninio padalinio informacija apie perkamus miškininkystės paslaugų kiekius 2025 metams"]
["Eil. ","Paslaugų grupės ir paslaugų pavadinimai","Preliminarios paslaugų apimtys"]
[1,"Želdaviečių paruošimas miškų sodinimui, želdinių ir žėlinių priežiūra, jaunuolynų ugdymas, griovių šlaitų ir pagriovių, pakelių, kvartalinių ir ribinių linijų priežiūra","Mato vnt.","Juodupės girininkija 1","Kamajų girininkija 1","Obelių girininkija 1","Pandėlio girininkija","Skapiškio girininkija","Šimonių girininkija 1","Rokiškio regioninis padalinys 1"]
["Pirkimo objekto dalies numeris",null,null,52,53,54,55,56,57,58]
["1.","Želdavietės paruošimas miško sodmenų sodinimui šalinant nepageidaujamus medžius, krūmus, žolinę augmeniją","ha",null,null,null,null,null,null,30]
["2.","Miško želdinių ir žėlinių  priežiūra šalinant žabus ir žolinę augmeniją","ha",35,10,30,45,70,13]
["3.","Jaunuolynų ugdymas ir/ar retinimo kirtimai, negaminant likvidinės medienos ","ha",15,0,10,10,25,11]
["4.","Griovių šlaitų ir pagriovių priežiūra","ha",1,1,1,1,1,1,{"$f":"1+2+4-1-3","v":3}]
["5.","Pakelių priežiūra","km",1,3,1,1,1,1,{"$f":"9+7+20-1-1-2","v":32}]
["6.","kvartalinių ir ribinių linijų priežūra","km",13,null,null,null,20,28]
["Preliminari 1 metų suma",null,null,{"$f":"+D5*301+D6*263+D7*299+D8*301+D9*53+D10*126","v":15682},{"$f":"+E5*301+E6*263+E7*299+E8*301+E9*53+E10*126","v":3090},11234,15179,28759,10590,11629]
["Maksimali POD suma",null,null,{"$f":"+D11*3*1.3","v":61159.8},{"$f":"+E11*3*1.3","v":12051},43812.6,59198.1,112160.1,41301,45353.1]
[]
["3.","Miško sodmenų sodinimas, želdinių ir žėlinių medelių ir jų liemenų apsauga nuo kanopinių žvėrių bei vabzdžių daromos žalos  ","Mato vnt.","Preliminarios paslaugų apimtys"]
[null,null,null,"Juodupės girininkija 2","Kamajų girininkija 2","Obelių girininkija 2","Kupiškio girininkija","Šimonių girininkija 2"]
["Pirkimo objekto dalies numeris",null,null,59,60,61,62,63]
["8.","Miško atkūrimas, įveisimas ir atsodinimas (medelių ir krūmų sodinimas)","tūkst. vnt.",40,{"$f":"90+25","v":115},149,40,160]
["9.","Želdinių, žėlinių apsauga nuo kanopinių žvėrių bei vabzdžių daromos žalos ","tūkst. vnt.",37,5,35,30,180]
["10.","Želdinių, žėlinių ir medelių kamienų apsauga nuo kanopinių žvėrių daromos žalos","tūkst. vnt.",6,1,3,34,42.6]
["Preliminari 1 metų suma",null,null,{"$f":"+D17*178+D18*27+D19*390","v":10459},{"$f":"+E17*178+E18*27+E19*390","v":20995},28637,21190,49954]
["Maksimali POD suma",null,null,{"$f":"+D20*3*1.3","v":40790.1},{"$f":"+E20*3*1.3","v":81880.5},111684.3,82641,194820.6]
[]
["5.","Sodmenų transportavimo paslaugos","Mato vnt.","Preliminarios paslaugų apimtys"]
[null,null,null,"Rokiškio regioninis padalinys 2","Rokiškio regioninis padalinys 3"]
["Pirkimo objekto dalies numeris",null,null,64,65]
["12.","Sodmenų transportavimo paslaugos ","km",4000,4000]
["Preliminari 1 metų suma",null,null,{"$f":"+D26*1.5","v":6000},{"$f":"+E26*1.5","v":6000}]
["Maksimali POD suma",null,null,{"$f":"+D27*3*1.3","v":23400},{"$f":"+E27*3*1.3","v":23400}]

{"sheet":"Šakiai","index":8,"n_rows":21,"n_cols":7,"rows_kept":21,"cut":false,"hidden":false,"merged":[[19,0,19,2],[20,0,20,2],[15,0,15,2],[0,0,0,9],[1,2,1,6],[3,0,3,2],[13,0,14,0],[13,1,14,1],[13,2,14,2],[13,3,13,6],[10,0,10,2],[11,0,11,2]]}
["VĮ Valstybinių miškų urėdijos Šakių regioninio padalinio informacija apie perkamus miškininkystės paslaugų kiekius 2025 metams"]
["Eil. ","Paslaugų grupės ir paslaugų pavadinimai","Preliminarios paslaugų apimtys"]
[1,"Želdaviečių paruošimas miškų sodinimui, želdinių ir žėlinių priežiūra, jaunuolynų ugdymas, griovių šlaitų ir pagriovių, pakelių, kvartalinių ir ribinių linijų priežiūra","Mato vnt.","Lekėčių girininkija 1","Gerdžių girininkija 1","Šakių girininkija","Baltkojų girininkija 1"]
["Pirkimo objekto dalies numeris",null,null,66,67,68,69]
["1.","Želdavietės paruošimas miško sodmenų sodinimui šalinant nepageidaujamus medžius, krūmus, žolinę augmeniją","ha"]
["2.","Miško želdinių ir žėlinių  priežiūra šalinant žabus ir žolinę augmeniją","ha",50,50,40,50]
["3.","Jaunuolynų ugdymas ir/ar retinimo kirtimai, negaminant likvidinės medienos ","ha",15]
["4.","Griovių šlaitų ir pagriovių priežiūra","ha"]
["5.","Pakelių priežiūra","km"]
["6.","kvartalinių ir ribinių linijų priežūra","km"]
["Preliminari 1 metų suma",null,null,{"$f":"+D5*301+D6*263+D7*299+D8*301+D9*53+D10*126","v":17635},{"$f":"+E5*301+E6*263+E7*299+E8*301+E9*53+E10*126","v":13150},10520,13150]
["Maksimali POD suma",null,null,{"$f":"+D11*3*1.3","v":68776.5},{"$f":"+E11*3*1.3","v":51285},41028,51285]
[]
["3.","Miško sodmenų sodinimas, želdinių ir žėlinių medelių ir jų liemenų apsauga nuo kanopinių žvėrių bei vabzdžių daromos žalos  ","Mato vnt.","Preliminarios paslaugų apimtys"]
[null,null,null,"Lekėčių girininkija 2","Baltkojų girininkija 2","Gerdžių girininkija 2","Lekėčių girininkija 3"]
["Pirkimo objekto dalies numeris",null,null,70,71,72,73]
["8.","Miško atkūrimas, įveisimas ir atsodinimas (medelių ir krūmų sodinimas)","tūkst. vnt.",50,null,null,70]
["9.","Želdinių, žėlinių apsauga nuo kanopinių žvėrių bei vabzdžių daromos žalos ","tūkst. vnt.",null,100,170]
["10.","Želdinių, žėlinių ir medelių kamienų apsauga nuo kanopinių žvėrių daromos žalos","tūkst. vnt."]
["Preliminari 1 metų suma",null,null,{"$f":"+D17*178+D18*27+D19*390","v":8900},{"$f":"+E17*178+E18*27+E19*390","v":2700},4590,12460]
["Maksimali POD suma",null,null,{"$f":"+D20*3*1.3","v":34710},{"$f":"+E20*3*1.3","v":10530},17901,48594]

{"sheet":"Šalčininkai","index":9,"n_rows":21,"n_cols":9,"rows_kept":21,"cut":false,"hidden":false,"merged":[[19,0,19,2],[20,0,20,2],[15,0,15,2],[0,0,0,12],[3,0,3,2],[13,0,14,0],[13,1,14,1],[13,2,14,2],[1,3,1,8],[13,3,13,8],[10,0,10,2],[11,0,11,2]]}
["VĮ Valstybinių miškų urėdijos Šalčininkų regioninio padalinio informacija apie perkamus miškininkystės paslaugų kiekius 2025 metams"]
["Eil. ","Paslaugų grupės ir paslaugų pavadinimai",null,"Preliminarios paslaugų apimtys"]
[1,"Želdaviečių paruošimas miškų sodinimui, želdinių ir žėlinių priežiūra, jaunuolynų ugdymas, griovių šlaitų ir pagriovių, pakelių, kvartalinių ir ribinių linijų priežiūra","Mato vnt.","Jašiūnų girininkija 1","Kenos girininkija 1","Parudaminos girininkija 1","Poškonių girininkija 1","Rūdninkų girininkija 1","Šalčininkėlių  girininkija 1"]
["Pirkimo objekto dalies numeris",null,null,74,75,76,77,78,79]
["1.","Želdavietės paruošimas miško sodmenų sodinimui šalinant nepageidaujamus medžius, krūmus, žolinę augmeniją","ha",null,48.1,35.700000000000003,null,null,38.9]
["2.","Miško želdinių ir žėlinių  priežiūra šalinant žabus ir žolinę augmeniją","ha",41.1,45.8,11.4,90,90,3.2]
["3.","Jaunuolynų ugdymas ir/ar retinimo kirtimai, negaminant likvidinės medienos ","ha",23.1,null,4.0999999999999996,53,20]
["4.","Griovių šlaitų ir pagriovių priežiūra","ha",null,null,null,null,null,8]
["5.","Pakelių priežiūra","km"]
["6.","kvartalinių ir ribinių linijų priežūra","km",null,10,null,null,null,55]
["Preliminari 1 metų suma",null,null,{"$f":"+D5*301+D6*263+D7*299+D8*301+D9*53+D10*126","v":17716.2},{"$f":"+E5*301+E6*263+E7*299+E8*301+E9*53+E10*126","v":27783.5},14969.800000000001,39517,29650,21888.5]
["Maksimali POD suma",null,null,{"$f":"+D11*3*1.3","v":69093.180000000008},{"$f":"+E11*3*1.3","v":108355.65000000001},58382.22,154116.30000000002,115635,85365.150000000009]
[]
["3.","Miško sodmenų sodinimas, želdinių ir žėlinių medelių ir jų liemenų apsauga nuo kanopinių žvėrių bei vabzdžių daromos žalos  ","Mato vnt.","Preliminarios paslaugų apimtys"]
[null,null,null,"Jašiūnų girininkija 2","Kenos girininkija 2","Parudaminos girininkija 2","Poškonių girininkija 2","Rūdninkų girininkija 2","Šalčininkėlių  girininkija 2"]
["Pirkimo objekto dalies numeris",null,null,80,81,82,83,84,85]
["8.","Miško atkūrimas, įveisimas ir atsodinimas (medelių ir krūmų sodinimas)","tūkst. vnt.",215.75,354.1,44.6,192.3,162.15,130.1]
["9.","Želdinių, žėlinių apsauga nuo kanopinių žvėrių bei vabzdžių daromos žalos ","tūkst. vnt.",72.5,5,13,135,60]
["10.","Želdinių, žėlinių ir medelių kamienų apsauga nuo kanopinių žvėrių daromos žalos","tūkst. vnt."]
["Preliminari 1 metų suma",null,null,{"$f":"+D17*178+D18*27+D19*390","v":40361},{"$f":"+E17*178+E18*27+E19*390","v":63164.800000000003},8289.7999999999993,37874.400000000001,30482.7,23157.8]
["Maksimali POD suma",null,null,{"$f":"+D20*3*1.3","v":157407.9},{"$f":"+E20*3*1.3","v":246342.72000000003},32330.219999999998,147710.16000000003,118882.53000000001,90315.42]

{"sheet":"Šilutė","index":10,"n_rows":21,"n_cols":4,"rows_kept":21,"cut":false,"hidden":false,"merged":[[19,0,19,2],[20,0,20,2],[13,2,14,2],[15,0,15,2],[0,0,0,7],[3,0,3,2],[13,0,14,0],[13,1,14,1],[10,0,10,2],[11,0,11,2]]}
["VĮ Valstybinių miškų urėdijos Šilutės regioninio padalinio informacija apie perkamus miškininkystės paslaugų kiekius 2025 metams"]
["Eil. ","Paslaugų grupės ir paslaugų pavadinimai",null,"Preliminarios paslaugų apimtys"]
[1,"Želdaviečių paruošimas miškų sodinimui, želdinių ir žėlinių priežiūra, jaunuolynų ugdymas, griovių šlaitų ir pagriovių, pakelių, kvartalinių ir ribinių linijų priežiūra","Mato vnt.","Rambyno girininkija"]
["Pirkimo objekto dalies numeris",null,null,86]
["1.","Želdavietės paruošimas miško sodmenų sodinimui šalinant nepageidaujamus medžius, krūmus, žolinę augmeniją","ha",0]
["2.","Miško želdinių ir žėlinių  priežiūra šalinant žabus ir žolinę augmeniją","ha",95]
["3.","Jaunuolynų ugdymas ir/ar retinimo kirtimai, negaminant likvidinės medienos ","ha",40]
["4.","Griovių šlaitų ir pagriovių priežiūra","ha",0]
["5.","Pakelių priežiūra","km",0]
["6.","kvartalinių ir ribinių linijų priežūra","km",0]
["Preliminari 1 metų suma",null,null,{"$f":"+D5*301+D6*263+D7*299+D8*301+D9*53+D10*126","v":36945}]
["Maksimali POD suma",null,null,{"$f":"+D11*3*1.3","v":144085.5}]
[]
["3.","Miško sodmenų sodinimas, želdinių ir žėlinių medelių ir jų liemenų apsauga nuo kanopinių žvėrių bei vabzdžių daromos žalos  ","Mato vnt.","Preliminarios paslaugų apimtys"]
[null,null,null,"Šilutės girininkija"]
["Pirkimo objekto dalies numeris",null,null,87]
["8.","Miško atkūrimas, įveisimas ir atsodinimas (medelių ir krūmų sodinimas)","tūkst. vnt.",140]
["9.","Želdinių, žėlinių apsauga nuo kanopinių žvėrių bei vabzdžių daromos žalos ","tūkst. vnt.",300]
["10.","Želdinių, žėlinių ir medelių kamienų apsauga nuo kanopinių žvėrių daromos žalos","tūkst. vnt.",0]
["Preliminari 1 metų suma",null,null,{"$f":"+D17*178+D18*27+D19*390","v":33020}]
["Maksimali POD suma",null,null,{"$f":"+D20*3*1.3","v":128778}]

{"sheet":"Švenčionėliai","index":11,"n_rows":21,"n_cols":7,"rows_kept":21,"cut":false,"hidden":false,"merged":[[19,0,19,2],[20,0,20,2],[1,2,1,5],[13,3,13,6],[13,2,14,2],[15,0,15,2],[0,0,0,10],[3,0,3,2],[13,0,14,0],[13,1,14,1],[10,0,10,2],[11,0,11,2]]}
["VĮ Valstybinių miškų urėdijos Švenčionėlių regioninio padalinio informacija apie perkamus miškininkystės paslaugų kiekius"]
["Eil. ","Paslaugų grupės ir paslaugų pavadinimai","Preliminarios paslaugų apimtys"]
[1,"Želdaviečių paruošimas miškų sodinimui, želdinių ir žėlinių priežiūra, jaunuolynų ugdymas, griovių šlaitų ir pagriovių, pakelių, kvartalinių ir ribinių linijų priežiūra","Mato vnt.","Sarios girininkija 1","Lakajos girininkija 1","Žeimenos girininkija 1"]
["Pirkimo objekto dalies numeris",null,null,88,89,90]
["1.","Želdavietės paruošimas miško sodmenų sodinimui šalinant nepageidaujamus medžius, krūmus, žolinę augmeniją","ha"]
["2.","Miško želdinių ir žėlinių  priežiūra šalinant žabus ir žolinę augmeniją","ha",20,120,60]
["3.","Jaunuolynų ugdymas ir/ar retinimo kirtimai, negaminant likvidinės medienos ","ha",null,20]
["4.","Griovių šlaitų ir pagriovių priežiūra","ha"]
["5.","Pakelių priežiūra","km"]
["6.","kvartalinių ir ribinių linijų priežūra","km",null,6]
["Preliminari 1 metų suma",null,null,{"$f":"+D5*301+D6*263+D7*299+D8*301+D9*53+D10*126","v":5260},{"$f":"+E5*301+E6*263+E7*299+E8*301+E9*53+E10*126","v":38296},15780]
["Maksimali POD suma",null,null,{"$f":"+D11*3*1.3","v":20514},{"$f":"+E11*3*1.3","v":149354.4},61542]
[]
["3.","Miško sodmenų sodinimas, želdinių ir žėlinių medelių ir jų liemenų apsauga nuo kanopinių žvėrių bei vabzdžių daromos žalos  ","Mato vnt.","Preliminarios paslaugų apimtys"]
[null,null,null,"Sarios girininkija 2","Antaliedės girininkija","Lakajos girininkija 2","Žeimenos girininkija 2"]
["Pirkimo objekto dalies numeris",null,null,91,92,93,94]
["8.","Miško atkūrimas, įveisimas ir atsodinimas (medelių ir krūmų sodinimas)","tūkst. vnt."]
["9.","Želdinių, žėlinių apsauga nuo kanopinių žvėrių bei vabzdžių daromos žalos ","tūkst. vnt.",270,100,600,350]
["10.","Želdinių, žėlinių ir medelių kamienų apsauga nuo kanopinių žvėrių daromos žalos","tūkst. vnt."]
["Preliminari 1 metų suma",null,null,{"$f":"+D17*178+D18*27+D19*390","v":7290},{"$f":"+E17*178+E18*27+E19*390","v":2700},16200,9450]
["Maksimali POD suma",null,null,{"$f":"+D20*3*1.3","v":28431},{"$f":"+E20*3*1.3","v":10530},63180,36855]